bitfinex-derivatives/quotes_SOLF0:USTF0_20250527
["timestamp","ask_amount","ask_price","bid_price","bid_amount"]
[1748307063442,5.7404,174.14,174.11,115.52463553]
[1748307063742,0.03880602,174.15,174.11,115.52463553]
[1748307063942,5.7406,174.14,174.11,115.52463553]
[1748307064547,5.741,174.12,174.11,0.02093553]
[1748307068145,0.03880602,174.15,174.11,0.02093553]
[1748307068948,5.77910602,174.15,174.11,5.76203553]
[1748307071043,5.77910602,174.15,174.11,0.02093553]
[1748307071549,5.77910602,174.15,174.11,5.76223553]
[1748307071550,5.7404,174.14,174.11,5.76223553]
[1748307072148,5.77880602,174.15,174.11,5.76223553]
[1748307072348,5.77880602,174.15,174.12,5.741]
[1748307072649,0.03880602,174.15,174.11,113.58093553]
[1748307072841,0.03880602,174.15,174.12,3.871]
[1748307073042,0.03880602,174.15,174.14,5.7404]
[1748307073342,2.0536,174.23,174.14,109.04]
[1748307073545,8.54263839,174.24,174.15,113.56]
[1748307073744,8.54263839,174.24,174.17,5.7391]
[1748307073949,5.7385,174.2,174.17,5.7391]
[1748307074451,5.7388,174.19,174.17,0.03970992]
[1748307074642,0.04326376,174.2,174.17,0.03970992]
[1748307075549,5.7391,174.18,174.17,0.03970992]
[1748307093959,11.20484466,174.18,174.17,0.03970992]
[1748307096456,5.7409,174.13,174.08,2.0723]
[1748307096656,5.46574466,174.11,174.06,3.9701]
[1748307096860,113.7,174.16,174.06,3.9701]
[1748307097060,5.742,174.09,174.06,3.9701]
[1748307097259,116.25866112,174.15,174.04,1.33190308]
[1748307097260,5.46574466,174.08,174.04,1.33190308]
[1748307097459,11.20904466,174.06,174.04,1.35193472]
[1748307097660,5.46574466,174.05,174.04,1.35193472]
[1748307097958,5.7434,174.05,174.04,1.35193472]
[1748307098163,8.55249836,174.05,174.0,26.83298]
[1748307099064,2.5526886,174.04,174.0,26.83298]
[1748307099268,0.04018699,174.04,174.0,26.83298]
[1748307099659,8.59268535,174.04,174.0,26.83298]
[1748307099861,5.7447,174.01,174.0,26.83298]
[1748307100361,0.04018699,174.04,173.96,2.0549]
[1748307100662,2.0146,174.06,173.96,2.0549]
[1748307100663,0.03999893,174.02,173.96,2.0549]
[1748307100863,5.7453,174.0,173.96,2.0549]
[1748307101062,0.03999893,174.02,173.96,2.0549]
[1748307101465,5.78469893,174.02,173.96,2.0549]
[1748307101661,0.03999893,174.02,173.96,2.0549]
[1748307102562,8.55249836,174.09,173.96,2.0549]
[1748307102872,5.7436,174.05,173.96,2.0549]
[1748307103167,8.55249836,174.07,173.96,2.0549]
[1748307103366,5.744,174.04,173.96,111.1349]
[1748307103567,0.04308738,174.02,173.98,0.03999893]
[1748307104471,5.78778738,174.02,173.98,0.03999893]
[1748307104863,0.04308738,174.02,173.98,0.03999893]
[1748307105063,0.04308738,174.02,173.98,5.78539893]
[1748307105259,0.04308738,174.02,173.98,0.03999893]
[1748307105471,0.04308738,174.02,173.99,119.66]
[1748307105769,119.66,174.09,173.99,119.66]
[1748307105968,8.55249836,174.1,174.0,2.0499]
[1748307106168,5.7427,174.08,174.0,2.0499]
[1748307106469,8.55249836,174.1,174.0,2.0499]
[1748307106659,5.7424,174.08,174.0,2.0499]
[1748307106966,0.03696286,174.06,174.02,0.04022485]
[1748307107268,5.7434,174.05,174.02,0.04022485]
[1748307107468,0.03696286,174.06,174.02,0.04022485]
[1748307108562,5.7436,174.05,174.02,0.04022485]
[1748307108768,0.03696286,174.06,174.02,0.04022485]
[1748307109069,5.7434,174.05,174.02,0.04022485]
[1748307109467,0.03696286,174.06,174.02,0.04022485]
[1748307110269,5.7437,174.04,174.02,0.04022485]
[1748307110768,0.03696286,174.06,174.02,0.04022485]
[1748307110969,5.744,174.03,174.02,0.04022485]
[1748307115366,5.744,174.03,174.02,2.485e-05]
[1748307129982,0.03696286,174.06,174.02,2.485e-05]
[1748307130283,5.78026286,174.06,174.02,5.74412485]
[1748307130582,5.78026286,174.06,174.02,2.485e-05]
[1748307130777,0.03696286,174.06,174.02,2.485e-05]
[1748307130985,0.03696286,174.06,174.04,5.7434]
[1748307131576,0.03696286,174.06,174.03,5.7439]
[1748307132680,0.03696286,174.06,174.04,5.7436]
[1748307134485,122.62,174.14,174.04,122.62]
[1748307135573,0.04085421,174.11,174.07,0.03940569]
[1748307135772,5.7417,174.1,174.07,0.03940569]
[1748307136177,0.04085421,174.11,174.07,0.03940569]
[1748307136786,5.7423,174.08,174.07,0.03940569]
[1748307138990,5.742,174.09,174.07,0.03940569]
[1748307139293,0.04085421,174.11,174.07,5.78210569]
[1748307139588,0.04085421,174.11,174.07,0.03940569]
[1748307139784,0.04085421,174.11,174.09,5.742]
[1748307139990,0.04085421,174.11,174.07,0.03940569]
[1748307140288,0.04085421,174.11,174.07,6.21440569]
[1748307140789,0.04085421,174.11,174.08,5.7421]
[1748307140989,0.04085421,174.11,174.07,6.21440569]
[1748307142391,0.04085421,174.11,174.1,5.7417]
[1748307143394,0.04085421,174.11,174.1,128.3217]
[1748307145795,0.04085421,174.11,174.1,122.58]
[1748307146995,5.78215421,174.11,174.1,122.58]
[1748307147195,0.04085421,174.11,174.07,6.21440569]
[1748307147387,0.04085421,174.11,174.07,0.03940569]
[1748307147588,5.7423,174.08,174.07,0.03940569]
[1748307159013,5.78245421,174.11,174.07,5.78190569]
[1748307159416,0.04085421,174.11,174.07,0.03940569]
[1748307159612,0.04085421,174.11,174.08,5.7421]
[1748307161814,0.04085421,174.11,174.07,5.78200569]
[1748307162020,0.04085421,174.11,174.07,0.03940569]
[1748307164321,0.04085421,174.11,174.07,2.10750569]
[1748307164820,0.04085421,174.11,174.08,5.7423]
[1748307165020,0.04085421,174.11,174.07,2.10750569]
[1748307165822,0.04085421,174.11,174.07,0.03940569]
[1748307167021,5.7423,174.08,174.07,0.03940569]
[1748307167423,0.04085421,174.11,174.07,0.03940569]
[1748307168520,5.7419,174.1,174.07,0.03940569]
[1748307171425,5.7421,174.09,174.07,0.03940569]
[1748307172724,5.7417,174.1,174.07,0.03940569]
[1748307173921,5.78215421,174.11,174.07,5.78180569]
[1748307174227,0.04085421,174.11,174.07,0.03940569]
[1748307174826,5.7419,174.1,174.07,0.03940569]
[1748307175023,0.04085421,174.11,174.07,0.03940569]
[1748307175426,0.04085421,174.11,174.07,5.78180569]
[1748307176128,5.7419,174.1,174.07,5.78180569]
[1748307176327,0.04085421,174.11,174.07,0.03940569]
[1748307176729,5.7417,174.1,174.07,0.03940569]
[1748307177131,0.04085421,174.11,174.07,0.03940569]
[1748307177330,5.7423,174.08,174.07,0.03940569]
[1748307179630,0.04085421,174.11,174.07,0.03940569]
[1748307180127,0.04085421,174.11,174.07,5.78200569]
[1748307180128,5.78245421,174.11,174.07,5.78200569]
[1748307180632,5.7421,174.09,174.07,0.03940569]
[1748307181732,5.7418,174.1,174.07,0.03940569]
[1748307182236,5.7418,174.1,174.07,5.78190569]
[1748307182436,5.78225421,174.11,174.07,0.03940569]
[1748307183338,5.78225421,174.11,174.08,5.7422]
[1748307185240,5.78225421,174.11,174.07,5.78190569]
[1748307185539,5.7417,174.1,174.07,5.78190569]
[1748307187041,5.78225421,174.11,174.08,5.7422]
[1748307189648,0.04085421,174.11,174.09,5.7419]
[1748307189850,0.04085421,174.11,174.07,0.03940569]
[1748307190050,0.04085421,174.11,174.08,119.3]
[1748307190843,5.24707088,174.17,174.08,133.59249836]
[1748307191050,5.24707088,174.17,174.09,3.9867]
[1748307191246,5.24707088,174.17,174.1,109.08]
[1748307191447,5.24707088,174.17,174.16,5.7397]
[1748307191744,5.24707088,174.17,174.16,125.0197]
[1748307191950,5.24707088,174.17,174.16,119.28]
[1748307192652,0.04044428,174.18,174.16,119.28]
[1748307193652,5.77954428,174.18,174.16,119.28]
[1748307195354,0.04044428,174.18,174.15,0.03804189]
[1748307195848,5.7397,174.16,174.15,0.03804189]
[1748307206951,14.29199836,174.17,174.15,0.03804189]
[1748307208758,5.7397,174.16,174.15,0.03804189]
[1748307210059,5.7394,174.17,174.15,0.03804189]
[1748307210863,16.30144264,174.18,174.15,0.03804189]
[1748307211064,2.00974428,174.18,174.15,0.03804189]
[1748307211256,0.04044428,174.18,174.15,0.03804189]
[1748307211562,0.04044428,174.18,174.15,5.77804189]
[1748307212360,5.77954428,174.18,174.15,0.03804189]
[1748307213660,0.04044428,174.18,174.15,0.03804189]
[1748307213964,5.7394,174.17,174.15,0.03804189]
[1748307216261,5.7397,174.16,174.15,0.03804189]
[1748307224868,5.77984428,174.18,174.15,5.77794189]
[1748307226467,5.77984428,174.18,174.15,0.03804189]
[1748307226662,5.7394,174.17,174.15,0.03804189]
[1748307228471,0.04044428,174.18,174.15,0.03804189]
[1748307229070,0.04044428,174.18,174.17,5.7394]
[1748307231068,13.79956924,174.25,174.15,2.00824189]
[1748307231268,2.56010494,174.24,174.15,2.00824189]
[1748307231468,2.56010494,174.23,174.15,2.00824189]
[1748307231669,13.79956924,174.25,174.15,2.00824189]
[1748307231970,5.7376,174.23,174.19,5.7385]
[1748307232169,5.77657292,174.23,174.19,232.86067278]
[1748307233069,0.03897292,174.23,174.19,227.12217278]
[1748307233572,0.03897292,174.23,174.2,5.7381]
[1748307234171,0.03897292,174.23,174.19,232.86077278]
[1748307234375,0.03897292,174.23,174.19,227.12217278]
[1748307235278,5.7384,174.2,174.19,118.08217278]
[1748307235577,5.7384,174.2,174.19,227.12217278]
[1748307236577,5.7384,174.2,174.19,118.08217278]
[1748307236974,5.7381,174.21,174.19,118.08217278]
[1748307238674,5.7378,174.22,174.19,118.08217278]
[1748307239980,5.7378,174.22,174.19,123.82087278]
[1748307240480,5.7378,174.22,174.19,118.08217278]
[1748307241482,5.7378,174.22,174.19,123.82087278]
[1748307241985,0.03897292,174.23,174.2,5.7383]
[1748307242181,0.03897292,174.23,174.19,118.08217278]
[1748307242385,0.03897292,174.23,174.19,120.10337278]
[1748307242978,0.03897292,174.23,174.22,5.7377]
[1748307250187,7.292e-05,174.23,174.22,5.7377]
[1748307258495,5.7349,174.31,174.27,5.7358]
[1748307258687,5.7349,174.31,174.28,108.98]
[1748307259392,5.7343,174.33,174.28,108.98]
[1748307259586,0.04222436,174.32,174.29,0.04172933]
[1748307259785,0.04222436,174.32,174.29,5.77702933]
[1748307260596,0.04222436,174.32,174.3,5.735]
[1748307261398,5.77672436,174.32,174.29,0.04172933]
[1748307261897,0.04222436,174.32,174.29,0.04172933]
[1748307263496,5.735,174.31,174.29,0.04172933]
[1748307264592,5.77672436,174.32,174.29,0.04172933]
[1748307264897,5.77672436,174.32,174.29,5.77712933]
[1748307266191,5.77672436,174.32,174.29,0.04172933]
[1748307269998,5.7348,174.31,174.29,0.04172933]
[1748307270398,0.04222436,174.32,174.29,0.04172933]
[1748307270800,5.77692436,174.32,174.29,0.04172933]
[1748307272104,5.77692436,174.32,174.29,5.77712933]
[1748307274306,0.04222436,174.32,174.29,5.49818016]
[1748307274798,0.04222436,174.32,174.3,5.7351]
[1748307275003,0.04222436,174.32,174.31,116.54]
[1748307275398,0.04222436,174.32,174.31,122.2748]
[1748307280405,0.04222436,174.32,174.31,231.2148]
[1748307280803,0.04222436,174.32,174.31,225.48]
[1748307281209,0.04222436,174.32,174.31,116.54]
[1748307281411,0.04222436,174.32,174.31,225.48]
[1748307283314,5.77662436,174.32,174.31,225.48]
[1748307284506,5.77662436,174.32,174.31,116.54]
[1748307284912,5.77662436,174.32,174.31,225.48]
[1748307290013,5.77662436,174.32,174.31,116.54]
[1748307290210,5.77662436,174.32,174.31,225.48]
[1748307290509,0.04222436,174.32,174.31,225.48]
[1748307293010,0.04222436,174.32,174.31,116.54]
[1748307293216,0.04222436,174.32,174.31,225.48]
[1748307294708,0.04222436,174.32,174.31,231.2148]
[1748307297917,0.04222436,174.32,174.31,236.66877728]
[1748307298719,0.04222436,174.32,174.31,231.2148]
[1748307298915,0.04222436,174.32,174.31,236.66877728]
[1748307304316,0.04222436,174.32,174.31,231.2148]
[1748307304520,0.04222436,174.32,174.31,236.66877728]
[1748307306023,0.04222436,174.32,174.31,121.99397728]
[1748307306331,0.04222436,174.32,174.29,0.04172933]
[1748307306529,0.04222436,174.32,174.31,108.92]
[1748307308619,0.04222436,174.32,174.3,115.78]
[1748307308825,0.04222436,174.32,174.31,108.92]
[1748307309025,0.04222436,174.32,174.3,224.7]
[1748307309725,5.77692436,174.32,174.3,224.7]
[1748307310024,0.04222436,174.32,174.3,224.7]
[1748307310927,0.04222436,174.32,174.3,230.435]
[1748307314130,0.04222436,174.32,174.31,5.7348]
[1748307315433,0.04222436,174.32,174.3,224.7]
[1748307316231,5.77692436,174.32,174.3,224.7]
[1748307317534,5.7348,174.31,174.3,224.7]
[1748307318334,5.7348,174.31,174.3,224.72]
[1748307318536,5.7351,174.3,174.29,0.04172933]
[1748307322337,5.7351,174.3,174.29,2.933e-05]
[1748307322637,5.7366,174.26,174.24,108.94]
[1748307324635,5.7366,174.26,174.23,0.03900631]
[1748307324841,5.7366,174.26,174.23,108.97900631]
[1748307325038,5.737,174.25,174.23,0.03900631]
[1748307325538,5.7365,174.26,174.23,0.03900631]
[1748307325940,0.04280792,174.27,174.23,0.03900631]
[1748307326337,0.04280792,174.27,174.24,108.96]
[1748307326739,0.04280792,174.27,174.25,5.7365]
[1748307330141,0.04280792,174.27,174.26,5.7364]
[1748307330342,0.04280792,174.27,174.24,108.96]
[1748307331445,0.04280792,174.27,174.23,0.03900631]
[1748307331742,5.7371,174.24,174.23,0.03900631]
[1748307332548,5.737,174.25,174.23,0.03900631]
[1748307334050,5.7371,174.24,174.23,0.03900631]
[1748307335645,5.7381,174.21,174.19,115.0]
[1748307335845,5.7381,174.21,174.18,5.739]
[1748307336043,1.8918,174.25,174.16,115.0]
[1748307336241,5.7386,174.2,174.16,120.7397]
[1748307336448,1.8918,174.25,174.16,120.7397]
[1748307336643,0.04274612,174.22,174.19,0.04085983]
[1748307336946,5.7381,174.21,174.19,0.04085983]
[1748307337946,5.7384,174.2,174.19,0.04085983]
[1748307344856,5.7384,174.2,174.19,5.983e-05]
[1748307345658,5.7401,174.15,174.13,115.02]
[1748307346260,5.7398,174.16,174.13,120.7607]
[1748307346559,5.77869283,174.16,174.13,120.80226241]
[1748307347159,5.77869283,174.16,174.13,115.06156241]
[1748307347357,5.7401,174.15,174.13,115.06156241]
[1748307347961,5.7401,174.15,174.13,0.04156241]
[1748307348662,5.7404,174.14,174.13,0.04156241]
[1748307350463,8.52385903,174.14,174.04,117.0107]
[1748307350759,3.8268,174.13,174.04,115.06]
[1748307350963,5.7424,174.08,174.04,115.06]
[1748307351161,3.8268,174.13,174.04,115.06]
[1748307351362,3.8268,174.13,174.04,120.8034]
[1748307351558,5.7423,174.09,174.07,0.0369627]
[1748307352665,5.7423,174.08,174.07,0.0369627]
[1748307357073,120.8423,174.08,174.07,0.0369627]
[1748307357763,5.7437,174.04,174.01,115.06]
[1748307357964,5.7437,174.04,174.0,5.7449]
[1748307358166,123.62385903,174.08,173.98,118.918]
[1748307358368,5.7447,174.01,173.98,118.918]
[1748307358768,0.04162393,174.01,173.98,118.918]
[1748307359472,0.04162393,174.01,173.98,124.6635]
[1748307359772,0.04162393,174.01,173.98,118.918]
[1748307360272,5.78632393,174.01,173.98,118.918]
[1748307360872,0.04162393,174.01,173.98,118.918]
[1748307361068,0.04162393,174.01,173.98,124.6636]
[1748307361371,0.04162393,174.01,173.98,118.918]
[1748307361571,3.8268,174.13,174.04,5.7434]
[1748307361777,118.9468,174.13,174.03,115.12]
[1748307362071,118.9468,174.13,174.04,115.14]
[1748307362072,5.7419,174.1,174.04,115.14]
[1748307362465,0.03968476,174.09,174.05,0.04162393]
[1748307362669,0.03968476,174.09,174.05,5.78482393]
[1748307362871,0.03968476,174.09,174.05,0.04162393]
[1748307363067,0.03968476,174.09,174.05,2.05492393]
[1748307363270,0.03968476,174.09,174.05,4.04162393]
[1748307363767,0.03968476,174.09,174.08,5.7423]
[1748307364072,115.14,174.16,174.08,115.14]
[1748307364272,5.7407,174.14,174.08,115.14]
[1748307364474,121.1521,174.19,174.08,115.14]
[1748307364974,0.04313064,174.15,174.12,0.03693044]
[1748307365471,5.78323064,174.15,174.12,0.03693044]
[1748307365769,0.04313064,174.15,174.12,0.03693044]
[1748307365975,5.7407,174.13,174.12,0.03693044]
[1748307366976,5.7404,174.14,174.12,0.03693044]
[1748307368077,5.7407,174.13,174.12,0.03693044]
[1748307368980,5.7428,174.07,174.05,2.0133]
[1748307369178,5.7428,174.07,174.03,115.14]
[1748307369581,5.7428,174.07,174.03,120.8837]
[1748307370081,5.7428,174.07,174.03,115.17946572]
[1748307370082,5.78649923,174.07,174.03,115.17946572]
[1748307370282,5.7431,174.06,174.03,115.17946572]
[1748307371480,5.78649923,174.07,174.03,115.17946572]
[1748307371682,5.78649923,174.07,174.03,120.92336572]
[1748307371879,0.04369923,174.07,174.03,115.17946572]
[1748307372081,5.7414,174.11,174.03,115.17946572]
[1748307372283,5.7414,174.11,174.03,115.14]
[1748307372884,5.741,174.12,174.03,115.14]
[1748307373077,0.04239211,174.09,174.06,0.04015222]
[1748307373277,0.04239211,174.09,174.07,115.14]
[1748307374284,0.04239211,174.09,174.07,120.8824]
[1748307374473,0.04239211,174.09,174.07,115.14]
[1748307374981,5.78449211,174.09,174.07,115.14]
[1748307375184,5.78449211,174.09,174.06,0.04015222]
[1748307375383,0.04239211,174.09,174.06,0.04015222]
[1748307375683,5.78449211,174.09,174.06,0.04015222]
[1748307375887,0.04239211,174.09,174.06,0.04015222]
[1748307378080,5.78449211,174.09,174.06,0.04015222]
[1748307378283,0.04239211,174.09,174.06,5.78305222]
[1748307379285,0.04239211,174.09,174.08,5.7423]
[1748307379486,0.04239211,174.09,174.06,2.11015222]
[1748307379686,0.04239211,174.09,174.07,224.54]
[1748307380585,0.04239211,174.09,174.07,115.46]
[1748307381582,5.7427,174.07,174.06,0.04015222]
[1748307381986,0.04239211,174.09,174.06,0.04015222]
[1748307383188,5.78469211,174.09,174.06,0.04015222]
[1748307383788,0.04239211,174.09,174.06,5.78305222]
[1748307384091,0.04239211,174.09,174.06,0.04015222]
[1748307384490,5.78439211,174.09,174.06,0.04015222]
[1748307384690,0.04239211,174.09,174.06,0.04015222]
[1748307386691,0.04239211,174.09,174.07,5.7427]
[1748307387892,0.04239211,174.09,174.06,5.78305222]
[1748307388391,0.04239211,174.09,174.07,5.7426]
[1748307391588,0.04239211,174.09,174.08,5.7423]
[1748307392093,5.24707088,174.18,174.08,115.48]
[1748307392094,13.77092991,174.18,174.08,115.48]
[1748307392294,5.7403,174.15,174.11,5.7411]
[1748307392591,5.7403,174.15,174.11,114.8211]
[1748307392989,5.7403,174.15,174.11,114.86095707]
[1748307392990,5.78038627,174.15,174.11,114.86095707]
[1748307393786,0.04008627,174.15,174.12,5.741]
[1748307395292,5.78018627,174.15,174.11,114.86115707]
[1748307395587,5.24707088,174.2,174.12,123.98385903]
[1748307396394,0.04297652,174.18,174.16,5.7395]
[1748307396594,0.04297652,174.18,174.17,115.46]
[1748307399797,5.78197652,174.18,174.17,115.46]
[1748307402804,5.7397,174.16,174.15,0.04345197]
[1748307409207,2.07527652,174.18,174.15,0.04345197]
[1748307409208,5.7394,174.17,174.15,0.04345197]
[1748307409403,0.04297652,174.18,174.15,0.04345197]
[1748307409804,0.04297652,174.18,174.15,115.14345197]
[1748307410410,0.04297652,174.18,174.15,120.88325197]
[1748307411308,0.04297652,174.18,174.15,115.14345197]
[1748307412312,5.78207652,174.18,174.15,115.14345197]
[1748307412510,0.04297652,174.18,174.15,115.14345197]
[1748307413914,5.7396,174.17,174.15,115.14345197]
[1748307414313,0.04297652,174.18,174.15,0.04345197]
[1748307414513,5.78207652,174.18,174.15,0.04345197]
[1748307415615,5.7394,174.17,174.15,0.04345197]
[1748307417719,0.04297652,174.18,174.15,0.04345197]
[1748307419614,5.7397,174.16,174.15,0.04345197]
[1748307426215,0.04297652,174.18,174.15,0.04345197]
[1748307427421,5.78227652,174.18,174.15,0.04345197]
[1748307430423,5.7394,174.17,174.15,0.04345197]
[1748307430723,0.04297652,174.18,174.15,0.04345197]
[1748307431224,5.7397,174.16,174.15,0.04345197]
[1748307434528,8.2872579,174.16,174.15,0.04345197]
[1748307435028,8.2872334,174.16,174.15,0.04345197]
[1748307435223,8.2872334,174.16,174.15,5.197e-05]
[1748307438725,8.28874482,174.16,174.15,5.197e-05]
[1748307441623,13.0114336,174.16,174.15,5.197e-05]
[1748307445138,5.7397,174.16,174.15,5.197e-05]
[1748307446140,8.29132018,174.16,174.15,5.197e-05]
[1748307447436,13.01850111,174.16,174.15,5.197e-05]
[1748307447844,13.01922953,174.16,174.15,5.197e-05]
[1748307449647,10.46688093,174.16,174.15,5.197e-05]
[1748307450248,5.7397,174.16,174.15,5.197e-05]
[1748307450447,8.29226126,174.16,174.15,5.197e-05]
[1748307450948,13.77092991,174.21,174.15,5.197e-05]
[1748307450949,5.24707088,174.21,174.15,115.10005197]
[1748307451146,5.24707088,174.21,174.15,5.197e-05]
[1748307451450,5.7397,174.16,174.15,5.197e-05]
[1748307451639,5.24707088,174.21,174.15,5.197e-05]
[1748307451841,4.72702631,174.2,174.15,5.197e-05]
[1748307452042,4.76605991,174.2,174.15,5.197e-05]
[1748307453349,5.7396,174.17,174.15,5.197e-05]
[1748307453745,4.72702631,174.19,174.15,5.197e-05]
[1748307453948,5.7397,174.16,174.15,5.197e-05]
[1748307454449,5.7391,174.18,174.15,5.197e-05]
[1748307454944,0.0390336,174.2,174.15,5.197e-05]
[1748307457151,5.7776336,174.2,174.16,5.7397]
[1748307457449,0.0390336,174.2,174.16,5.7397]
[1748307457650,10.46610763,174.19,174.15,5.74005197]
[1748307458453,4.72740763,174.19,174.15,5.197e-05]
[1748307459149,5.7395,174.17,174.15,5.197e-05]
[1748307461653,5.7391,174.18,174.15,5.197e-05]
[1748307463357,5.7391,174.18,174.15,5.73995197]
[1748307464056,5.7394,174.17,174.15,5.197e-05]
[1748307466057,5.7391,174.18,174.15,5.197e-05]
[1748307466454,5.7391,174.18,174.15,5.74005197]
[1748307474260,5.7394,174.17,174.15,5.197e-05]
[1748307477359,0.0390336,174.2,174.15,5.197e-05]
[1748307478262,5.7398,174.17,174.15,5.197e-05]
[1748307480463,5.7401,174.16,174.15,5.197e-05]
[1748307481563,8.39562011,174.16,174.15,5.197e-05]
[1748307484868,5.7401,174.16,174.15,5.197e-05]
[1748307485062,8.4005273,174.16,174.15,5.197e-05]
[1748307486769,8.40080338,174.16,174.15,5.197e-05]
[1748307488667,8.40055162,174.16,174.15,5.197e-05]
[1748307492277,0.0390336,174.2,174.15,5.74045197]
[1748307492480,2.661447,174.19,174.15,115.06005197]
[1748307492774,8.401047,174.18,174.15,115.06005197]
[1748307492974,5.7396,174.18,174.15,115.06005197]
[1748307495577,5.7398,174.17,174.15,115.06005197]
[1748307496081,5.7398,174.17,174.15,5.197e-05]
[1748307496277,5.7395,174.18,174.15,5.197e-05]
[1748307497773,5.7398,174.17,174.15,5.197e-05]
[1748307504688,5.7401,174.16,174.15,5.197e-05]
[1748307504986,13.86586252,174.16,174.15,5.197e-05]
[1748307505387,18.59658361,174.16,174.15,5.197e-05]
[1748307506985,18.59535447,174.16,174.15,5.197e-05]
[1748307508688,15.9356767,174.16,174.15,5.197e-05]
[1748307508990,18.59607902,174.16,174.15,5.197e-05]
[1748307509193,15.9356767,174.16,174.15,5.197e-05]
[1748307509386,18.5960322,174.16,174.15,5.197e-05]
[1748307512398,18.59483188,174.16,174.15,5.197e-05]
[1748307514196,18.59463645,174.16,174.15,5.197e-05]
[1748307516094,18.59436088,174.16,174.15,5.197e-05]
[1748307517293,15.9356767,174.16,174.15,5.197e-05]
[1748307517495,18.59423601,174.16,174.15,5.197e-05]
[1748307521597,18.59381493,174.16,174.15,5.197e-05]
[1748307523397,18.59378003,174.16,174.15,5.197e-05]
[1748307525295,18.5937803,174.16,174.15,5.197e-05]
[1748307527100,18.59345793,174.16,174.15,5.197e-05]
[1748307528300,13.12860232,174.16,174.15,5.197e-05]
[1748307528502,18.59345793,174.16,174.15,5.197e-05]
[1748307532705,5.7421,174.1,174.09,115.02]
[1748307532901,5.7421,174.1,174.06,124.7978]
[1748307533198,5.46485561,174.13,174.06,119.0546]
[1748307533403,2.65544994,174.12,174.06,119.0546]
[1748307533603,2.69388066,174.11,174.07,0.04162036]
[1748307533800,0.0384067,174.11,174.07,0.04162036]
[1748307534005,5.7425,174.09,174.07,0.04162036]
[1748307537811,5.7427,174.08,174.07,0.04162036]
[1748307559023,5.7421,174.1,174.07,5.78462036]
[1748307561122,5.46485561,174.1,174.07,0.04162036]
[1748307561630,5.7427,174.08,174.07,0.04162036]
[1748307563832,11.20725561,174.1,174.07,0.04162036]
[1748307564030,5.46485561,174.1,174.07,0.04162036]
[1748307564829,5.47222578,174.08,173.95,1.35571827]
[1748307565033,117.59247474,174.09,173.95,1.35571827]
[1748307565034,5.47669002,174.01,173.95,1.35571827]
[1748307565230,5.47669002,173.99,173.95,1.35571827]
[1748307565929,5.51371621,173.99,173.95,1.39415363]
[1748307566332,11.25961621,173.99,173.95,1.39415363]
[1748307567934,5.78292619,173.99,173.95,0.03843536]
[1748307568733,5.78292619,173.99,173.95,5.78543536]
[1748307574940,5.7461,173.98,173.95,0.03843536]
[1748307575140,0.03702619,173.99,173.95,0.03843536]
[1748307575741,5.7463,173.98,173.95,0.03843536]
[1748307576340,5.7464,173.97,173.95,0.03843536]
[1748307576639,0.03702619,173.99,173.95,0.03843536]
[1748307577341,5.7461,173.98,173.95,0.03843536]
[1748307580245,5.7464,173.97,173.95,0.03843536]
[1748307580445,0.03702619,173.99,173.95,5.78543536]
[1748307581042,5.746,173.98,173.95,0.03843536]
[1748307584051,5.746,173.98,173.95,5.78543536]
[1748307586655,5.78282619,173.99,173.95,5.78543536]
[1748307587851,5.78282619,173.99,173.95,0.03843536]
[1748307587852,0.03702619,173.99,173.95,0.03843536]
[1748307588062,0.03702619,173.99,173.95,5.5148597]
[1748307588257,0.03702619,173.99,173.97,5.47642434]
[1748307589159,0.03702619,173.99,173.98,5.746]
[1748307590357,0.03702619,173.99,173.98,120.666]
[1748307590559,114.92,174.07,174.01,5.7447]
[1748307590758,7.46912434,174.09,174.02,5.47642434]
[1748307590958,2.63670693,174.08,174.02,5.47642434]
[1748307591154,7.46912434,174.09,174.03,5.7442]
[1748307591155,1.9927,174.09,174.03,5.7442]
[1748307591353,5.7428,174.08,174.02,120.39642434]
[1748307591650,0.04306398,174.07,174.03,0.04376314]
[1748307592155,0.04306398,174.07,174.04,5.744]
[1748307597466,0.04306398,174.07,174.03,0.04376314]
[1748307598464,5.7437,174.06,174.03,0.04376314]
[1748307598659,0.04306398,174.07,174.03,0.04376314]
[1748307599153,0.04306398,174.07,174.04,5.744]
[1748307599966,0.04306398,174.07,174.03,0.04376314]
[1748307600362,0.04306398,174.07,174.05,5.7434]
[1748307601069,0.04306398,174.07,174.06,5.7434]
[1748307601369,0.04306398,174.07,174.04,109.12]
[1748307602166,5.7435,174.06,174.04,109.12]